Cogmind - Beta 14 @@@ ROGUE MODE // 2024.10.31 @ 21:45:49 Player: Xellophane Result: Destroyed by G-47 Trooper with Particle Gun Performance ------------- Evolutions (0) 0 Regions Visited (2) 400 Robots Destroyed (24) 120 Value Destroyed (409) 409 Prototype IDs (4) 80 Alien Tech Used (0) 0 Bonus (0) 0 TOTAL SCORE: 1009 Bonus ------- None Cogmind --------- Core Integrity 0/250 Matter 299/300 Energy 100/100 System Corruption 1% Temperature Cool (9) Movement Core (1400) Ox27 Location -10/Mines Parts ------- > --- POWER (1) -------- (None) > --- PROPULSION (2) --- (None) > --- UTILITY (2) ------ Huge Storage Unit Signal Interpreter > --- WEAPON (2) ------- Hammer > --- INVENTORY (25) --- Light Ion Engine Aluminum Leg Aluminum Leg High-capacity Storage Unit Sensor Array Seismic Detector ECM Suite Assault Rifle Grenade Launcher Rocket Launcher Mining Laser Hammer Peak State ------------ > --- POWER ------------ Light Ion Engine > --- PROPULSION ------- Light Treads Light Treads > --- UTILITY ---------- Medium Storage Unit Seismic Detector > --- WEAPON ----------- Assault Rifle Hammer > --- INVENTORY -------- Light Ion Engine Light Treads Aluminum Leg Aluminum Leg Small Laser Assault Rifle Assault Rifle Grenade Launcher Mining Laser Hammer [Rating: 8] Favorites ----------- Power Light Ion Engine Engine Light Ion Engine Propulsion Light Treads Treads Light Treads Utility Signal Interpreter Device Seismic Detector Storage Huge Storage Unit Processor Signal Interpreter Weapon Assault Rifle Energy Gun EM Pulse Gun Ballistic Gun Assault Rifle Impact Weapon Hammer Build | -11 -10 -10 ------- Run | Yrd Mat Min Slots Evolved . | . . . Power . | . . . Propulsion . | . . . Utility . | . . . Weapon . | . . . Parts Attached 21 | 7 13 1 Power 3 | 1 2 . Engine 3 | 1 2 . Core . | . . . Reactor . | . . . Propulsion 6 | 2 3 1 Treads 6 | 2 3 1 Leg . | . . . Wheel . | . . . Hover . | . . . Flight . | . . . Utility 6 | 2 4 . Device 2 | 1 1 . Storage 3 | 1 2 . Processor 1 | . 1 . Hackware . | . . . Protection . | . . . Artifact . | . . . Weapon 6 | 2 4 . Energy Gun 1 | 1 . . Energy Cannon . | . . . Ballistic Gun 3 | 1 2 . Ballistic Cannon . | . . . Launcher . | . . . Special Weapon . | . . . Impact Weapon 2 | . 2 . Slashing Weapon . | . . . Piercing Weapon . | . . . Special Melee Weapon . | . . . Unidentified Prototypes . | . . . Parts Lost 7 | . 2 5 Power 1 | . . 1 Propulsion 3 | . . 3 Utility 1 | . 1 . Weapon 2 | . 1 1 Highest Loss Streak 4 | . 1 4 To Critical Strikes . | . . . Average Slot Usage (%) 96 | . 96 96 Engine 13 | . 13 12 Treads 27 | . 27 26 Device 2 | . 3 . Storage 14 | . 14 14 Processor 10 | . 8 14 Ballistic Gun 13 | . 13 13 Impact Weapon 13 | . 13 14 Peak Build Rating 8 | 7 8 8 Average Rating 7 | 5 7 7 On Entrance 5 | . 7 8 Naked Turns . | . . . Heaviest Build 87 | 13 87 87 Greatest Support 40 | 40 40 40 Greatest Overweight (x) 27 | 1 3 27 Average Overweight (x) 1 | . . 2 Largest Inventory Capacity 25 | 8 25 25 Average Capacity 19 | 7 17 25 Most Carried 12 | 6 11 12 Average Carried 9 | 3 9 11 Final Capacity 25 | 8 25 25 Final Carried 12 | 6 11 12 Class Distribution -------------------- 100% | Mutant Dominant Class ---------------- Mutant | -10/Materials Mutant | -10/Mines Resources | -11 -10 -10 ----------- Run | Yrd Mat Min Matter Collected 526 | 321 155 50 Remotely . | . . . Salvage Created 749 | 252 422 75 Parts 35 | 20 13 2 Haulers Intercepted 1 | . 1 . Recyclers Shooed 3 | 1 2 . Parts Field Recycled . | . . . Retrieved Matter . | . . . Parts Self-Destructed . | . . . Prevented . | . . . Kills | -11 -10 -10 ------- Run | Yrd Mat Min Combat Hostiles Destroyed 14 | . 12 2 Melee 5 | . 4 1 Guns 4 | . 4 . Classes Destroyed 6 | 3 3 . Worker 2 | 2 . . Tunneler 5 | 5 . . Hauler 1 | . 1 . Recycler 2 | 1 1 . Swarmer 6 | . 6 . Grunt 8 | . 6 2 Best Kill Streak 6 | 6 3 1 Combat Bots Only 3 | . 3 1 Max Kills in Single Turn 1 | 1 1 1 Gunslinging . | . . . Exploded . | . . . Melee 1 | . 1 1 Uniques/NPCs Destroyed . | . . . Combat | -11 -10 -10 -------- Run | Yrd Mat Min Hostile Shots Fired 125 | . 89 36 Missed 33 | . 27 6 Damage Taken 1031 | 24 582 425 Core 254 | 12 109 133 Absorbed by Shields . | . . . Core Remaining (%) 95 | 95 . . Volleys Fired 40 | 17 20 3 Largest 2 | 2 1 1 Hottest 60 | 60 20 20 Shots Fired 48 | 25 20 3 Gun 48 | 25 20 3 Cannon . | . . . Launcher . | . . . Special . | . . . Kinetic 40 | 17 20 3 Thermal . | . . . Explosive . | . . . Electromagnetic 8 | 8 . . Robot Hit Streak 9 | 7 9 1 Robot Miss Streak 2 | 2 2 1 Penetration Max . | . . . Secondary Targets . | . . . Shots Hit Robots 62 | 17 37 8 Core Hits 21 | 9 11 1 Critical Kills 1 | . . 1 Critical Parts Destroyed 5 | 1 3 1 Critical Strikes 6 | 1 3 2 Destroy 1 | 1 . . Smash 5 | . 3 2 Melee Attacks 48 | . 39 9 Impact 48 | . 39 9 Slashing . | . . . Piercing . | . . . Sneak Attacks 3 | . 2 1 Combat Hostiles 1 | . . 1 Follow-up Attacks . | . . . Damage Inflicted 1240 | 257 769 214 Guns 417 | 214 193 10 Cannons . | . . . Explosions 43 | 43 . . Melee 780 | . 576 204 Ramming . | . . . Kinetic 337 | 134 193 10 Thermal 43 | 43 . . Explosive . | . . . Electromagnetic 80 | 80 . . Impact 780 | . 576 204 Slashing . | . . . Piercing . | . . . Highest Corruption 1 | . 1 1 Average Corruption 1 | . 1 1 Corruption Purged . | . . . Corruption Blocked . | . . . Effects 13 | . 7 6 Message Errors 3 | . 1 2 Matter Fused 3 | . 2 1 Energy Discharges 2 | . 1 1 Data Loss (minor) 4 | . 2 2 Data Loss (major) 1 | . 1 . Overload Shots . | . . . Overflow Damage 148 | . 114 34 Projectiles . | . . . Explosions . | . . . Melee 148 | . 114 34 Knockbacks 5 | . 2 3 Impact 4 | . 2 2 Kinetic . | . . . Secondary 1 | . . 1 Self-Inflicted Damage 24 | 24 . . Shots 1 | 1 . . Rammed . | . . . Targets Rammed . | . . . Kicked . | . . . Crushed . | . . . Highest Temperature 17 | 12 9 17 Average Temperature 10 | 12 9 8 Received Heat Transfer 417 | . 162 255 Siege Activations . | . . . Robots Corrupted 6 | . 5 1 Combat Hostiles 5 | . 4 1 Parts Fried 11 | . 9 2 Impact Corruptions 11 | . 9 2 Robots Melted . | . . . Combat Hostiles . | . . . Parts Melted . | . . . Heat Transferred 50 | 50 . . Parts Sabotaged . | . . . Parts Stolen . | . . . Parts Stripped . | . . . Power Chain Reactions 1 | 1 . . Alert | -11 -10 -10 ------- Run | Yrd Mat Min Peak Influence 288 | 40 288 54 Initial 26 | . 26 24 Average 72 | 21 104 21 Maximum Alert Level 1 | . 1 . Low Security (%) 95 | 100 93 100 Level 1 4 | . 6 . Level 2 . | . . . Level 3 . | . . . Level 4 . | . . . Level 5 . | . . . High Security . | . . . Max Security . | . . . Squads Dispatched 3 | . 3 . Investigation 1 | . 1 . Extermination . | . . . Reinforcement 2 | . 2 . Assault . | . . . Garrison . | . . . Intercept . | . . . Searches Triggered . | . . . Construction Impeded . | . . . Haulers Reinforced . | . . . Active Scanning Responses . | . . . Cargo Convoy Interrupts . | . . . Stealth | -11 -10 -10 --------- Run | Yrd Mat Min Distress Signals 2 | . 2 . Communications Jammed . | . . . Distress Signals . | . . . Times Spotted 27 | . 25 2 Peak Tracking Total 4 | . 4 1 Tactical Retreats 4 | . 4 . Traps | -11 -10 -10 ------- Run | Yrd Mat Min Traps Triggered 2 | . 2 . Indirectly . | . . . Trap Hack Attempts . | . . . Triggered . | . . . Disarmed . | . . . Reprogrammed . | . . . Reused . | . . . Traps Extracted . | . . . Installed . | . . . Triggered . | . . . Machines | -11 -10 -10 ---------- Run | Yrd Mat Min Machines Disabled . | . . . Max in Single Turn . | . . . Machines Repaired . | . . . Machines Dismantled . | . . . Machines Sabotaged . | . . . Overloaded Fab Kills . | . . . Hacking | -11 -10 -10 --------- Run | Yrd Mat Min Machines Accessed 4 | . 4 . Terminals 4 | . 4 . Fabricators . | . . . Repair Stations . | . . . Recycling Units . | . . . Scanalyzers . | . . . Garrison Access . | . . . Total Hacks 13 | . 13 . Successful 3 | . 3 . Failed 10 | . 10 . Catastrophic 2 | . 2 . Database Lockouts . | . . . Manual 11 | . 11 . Terminals 13 | . 13 . Fabricators . | . . . Repair Stations . | . . . Recycling Units . | . . . Scanalyzers . | . . . Garrison Access . | . . . Terminal Hacks 3 | . 3 . Prototype ID Bank 2 | . 2 . Terminal Index 1 | . 1 . Fabricator Hacks . | . . . Repair Station Hacks . | . . . Recycling Unit Hacks . | . . . Scanalyzer . | . . . Garrison Access Hacks . | . . . Unauthorized Hacks . | . . . Terminals . | . . . Fabricators . | . . . Repair Stations . | . . . Recycling Units . | . . . Scanalyzers . | . . . Garrison Access . | . . . Data Cores Recovered . | . . . Used . | . . . Hacking Detections 4 | . 4 . Full Trace Events 3 | . 3 . Feedback Events 1 | . 1 . Corruption 1 | . 1 . Feedback Blocked . | . . . Robot Schematics Acquired . | . . . Robots Built . | . . . Authchips . | . . . Time . | . . . Total Robot Build Rating . | . . . Part Schematics Acquired . | . . . Parts Built . | . . . Authchips . | . . . Time . | . . . Total Part Build Rating . | . . . Parts Repaired . | . . . Time . | . . . Parts Recycled . | . . . Recycled Matter . | . . . Retrieved Matter . | . . . Retrieved Components . | . . . Parts Scanalyzed . | . . . Part Schematics Acquired . | . . . Parts Damaged . | . . . Bothacking | -11 -10 -10 ------------ Run | Yrd Mat Min Used RIF Installer . | . . . Robots Hacked . | . . . Non-combat . | . . . Combat . | . . . Robot Hacks Applied . | . . . Relay Couplers Released . | . . . Fabnet Peak Effective % . | . . . Robots Rewired . | . . . Allies Hacked . | . . . Hacks Repelled . | . . . Allies | -11 -10 -10 -------- Run | Yrd Mat Min Total Allies . | . . . Largest Group . | . . . Highest-Rated Group . | . . . Highest-Rated Ally . | . . . Total Orders . | . . . Ally Attacks . | . . . Total Damage . | . . . Kills . | . . . Allies Corrupted . | . . . Allies Melted . | . . . Intel | -11 -10 -10 ------- Run | Yrd Mat Min Robot Analysis Total . | . . . Derelict Logs Recovered 1 | . . 1 Drone Launches . | . . . Drone Recoveries . | . . . Exploration | -11 -10 -10 ------------- Run | Yrd Mat Min Turns Passed 2101 | 151 1286 664 Spaces Moved 700 | 68 445 187 Core 19 | 15 2 2 Treads 681 | 53 443 185 Legs . | . . . Wheels . | . . . Hover . | . . . Flight . | . . . Fastest Speed 50 | 50 160 320 Average Speed 251 | 137 234 334 Slowest Speed 1400 | 160 320 1400 Overloaded Moves . | . . . Propulsion Burnouts . | . . . Robots Hopped . | . . . Cave-ins Triggered . | . . . Exploration Rate (%) 43 | 4 79 47 Regions Visited 2 Branch Regions 1 Pre-discovered Areas 1 | . . 1 Known Exits Taken 1 | . 1 . Unknown Exits Taken 1 | 1 . . Scrap Searched 1 | . . 1 Spaces Dug . | . . . Terrain Destroyed 2 | 2 . . Melee . | . . . Projectile . | . . . AOE 2 | 2 . . Terrain Rammed . | . . . Walls Destroyed . | . . . Machines Disabled . | . . . Actions | -11 -10 -10 --------- Run | Yrd Mat Min Total 914 | 97 601 216 Wait 82 | . 68 14 Move 698 | 67 444 187 Hop . | . . . Pick Up 18 | 6 10 2 Fast Attach 13 | 7 6 . Attach 4 | . 3 1 Detach 1 | . 1 . Swap 4 | . 4 . Drop 6 | . 6 . Fire 40 | 17 20 3 Melee 48 | . 39 9 Ram . | . . . Kick . | . . . Crush . | . . . Escape Stasis . | . . . Rewire . | . . . Trap . | . . . Miscellaneous . | . . . Route ------- -11/Scrapyard -10/Materials (discovered 3 exits: *Mat x2 / *Min) -10/Mines History --------- Turn | Location | Event 5 | -11/Scrapyard | Discovered new exit (range 16) 152 | -11/Scrapyard | Entered Materials 306 | -10/Materials | Build established: Mutant 667 | -10/Materials | Discovered new exit (range 14) 687 | -10/Materials | Identified exit to Materials 1175 | -10/Materials | Discovered exit to Materials (range 11) 1418 | -10/Materials | Discovered new exit (range 6) 1435 | -10/Materials | Identified exit to Mines 1438 | -10/Materials | Entered Mines 1592 | -10/Mines | Learned location of Storage (-9) 1853 | -10/Mines | Core integrity fell below 50% 2024 | -10/Mines | Received a Rocket Launcher from a helpful Derelict 2088 | -10/Mines | Core integrity fell below 20% 2102 | -10/Mines | Destroyed by G-47 Trooper with Particle Gun Last Messages --------------- 02010_ A derelict emerges from the shadows. 02011_ P7-1I8(g): "Some of my friends down here think you need a mining laser when you travel the depths." 02012_ P7-1I8(g): "You know what I say? NO!" 02013_ P7-1I8(g): "Everyone knows a good old rocket launcher goes a long way." 02014_ P7-1I8(g): "Need to get rid of a swarm? Done. Need a big hole in the wall? Done." 02015_ P7-1I8(g): "Need a small hole in the wall? Leave that to the mining laser wimps, I say!" 02024_ P7-1I8(g): "Would you like a rocket launcher? I know I would if I were you, so I'm going to lend you mine." 02024_ P7-1I8(g) slips back into the shadows. 02032_ Acquired Rocket Launcher. 02053_ Critical hit (Burn: +37). 02055_ Lgt. Ion Engine destroyed. 02064_ Assault Rifle destroyed. 02075_ Lgt. Treads destroyed. 02076_ System corrupted: Matter fused (-6). 02081_ Lgt. Treads destroyed. Map ----- +----------------------------------------------------+ | | | | | ?????????????????????????????????????????????????? | | ?????????????????????????????????????????????????? | | ?????????????????????????????????????????????????? | | ?????????????????????????????????????????????????? | | ?????????????????????????????????????????????????? | | ?????????????????????????????????????????????????? | | ?????????????????????????????????????????????????? | | ?????????????????????????????????????????????????? | | ?????????????????????????????????????????????????? | | ?????????????????????????????????????????????????? | | ?????????????????????????????????????????????????? | | ?????????????????????????????????????????????????? | | ?????????????????????????????????????????????????? | | ?????????????????????????????????????????????????? | | ?????????????????????????????????????????????????? | | ?????????????????????????????????????????????????? | | ????????????????????????????###??????????????????? | | ??????????????????????????## ##?????????????????? | | ??????????????????????????# #?????????????????? | | ?????????????????????????## #?????????????????? | | ????????????????????????## #?????????????????? | | ???????????????????????## #??????????????????? | | ?????????? k ####g #######????????????? | | ???????????????# % r @ #????????????? | | ????????????????# ## #????????????? | | ????????????????## ?????## ##### #????????????? | | ?????????????????????????### #???????????????????? | | ???????????????????????????# #???????????????????? | | ?????????????????????????### #???????????????????? | | ?????????????????????????# !%#???????????????????? | | ?????????????????????????# ###???????????????????? | | ????????????????????????## #??????????#??????????? | | ???????????????????????## ##??#####?? ??????????? | | ??????????????????????## #### ##? ??????????? | | ??????????????????????#! ## #? #?????????? | | ??????????????????????#[ ## #?????????? | | ??????????????????????# [ %### #?????????? | | ??????????????????????## ####?# #?????????? | | ???????????????????????## ##????# #?????????? | | ????????????????????????## ! ##?????# #?????????? | | ?????????????????????????## ##??????# #???????### | | ??????????????????????????# ####????# ##??##### | | ??????????????????????????# #???## #### | | ??????????????????????????# #???# ## | | ??????????????????????????#### #???# | | ?????????????????????????????# ##### """ | | ?????????????????????????????# """ # | | ?????????????????????????????##### ## """ ## | +----------------------------------------------------+ Best States ------------- Heat Dissipation 25 Energy Generation 10 Energy Capacity 125 Matter Stores 300 Matter Capacity 300 Sight Range 16 Terrain Scan Density 10 Evasion (%) 50 Recoil Reduction 2 Item Schematics ----------------- None Robot Schematics ------------------ None Fabricated ------------ Nothing Alien Tech Used ----------------- None Achievements -------------- None Challenges ------------ None Game ------ Seed SensorMissileShredder Manual? 0 Play Time 00:16:05 Cumulative 9.6 hours Start 2024.10.31 @ 21:31:32 End 2024.10.31 @ 21:45:49 Sessions 1 Manual Loads 0 Difficulty Rogue Special Mode None Game No. 15 Rogue 15 Adventurer 0 Explorer 0 Win Type - Total 0 Types 0/0/0/0/0/0/0/0/0 Lore% 4 Gallery% 8 Achievement% 13 Wizard Run 0 Options --------- Layout 0 ASCII 0 Keyboard 1 Movement Numpad Keybinds 0 Fullscreen 2 Font 18/SmallcapsGlow Map View 76x50 Zoom Use 0% Tactical HUD 1 Map Filters NONE Filters NONE Steam 1 RUN: 7620322e-7db4-4b24-8d1a-05d39a9732a6